bitfinex/quotes_SOLUSD_20220114
["timestamp","ask_amount","ask_price","bid_price","bid_amount"]
[1642178296158,21.70526718,147.15,147.09,32.959]
[1642178296356,20.04812235,147.15,147.09,34.64007684]
[1642178296556,20.04812235,147.15,147.09,24.44707684]
[1642178297156,1.65714483,147.19,147.09,24.44707684]
[1642178297357,1.65714483,147.19,147.09,24.70707684]
[1642178297557,1.65714483,147.19,147.09,34.90027684]
[1642178297758,1.65714483,147.18,147.09,32.9592]
[1642178298160,1.65714483,147.18,147.1,100.0197186]
[1642178298358,1.65714483,147.18,147.1,109.8797186]
[1642178298559,23.84856322,147.19,147.1,118.33079544]
[1642178298758,23.84856322,147.19,147.1,118.07079544]
[1642178299359,23.84856322,147.19,147.12,10.1912]
[1642178299565,23.84856322,147.19,147.12,17.2992]
[1642178300370,23.84856322,147.19,147.12,23.2992]
[1642178301161,23.84856322,147.19,147.12,7.108]
[1642178301361,23.84856322,147.19,147.12,0.25]
[1642178301560,23.84856322,147.19,147.1,28.24327684]
[1642178301561,26.56656322,147.19,147.1,28.24327684]
[1642178301960,32.56656322,147.19,147.1,28.24327684]
[1642178302163,26.56656322,147.19,147.1,26.3022]
[1642178302869,26.56656322,147.19,147.1,26.0522]
[1642178303267,25.50570805,147.19,147.1,26.3122]
[1642178303469,1.65714483,147.19,147.1,26.3122]
[1642178303869,1.65714483,147.19,147.1,94.3122]
[1642178304170,1.65714483,147.2,147.1,96.25327684]
[1642178304369,1.65714483,147.2,147.1,104.19127684]
[1642178304569,29.61726555,147.19,147.1,35.93127684]
[1642178305478,29.61726555,147.19,147.11,68.0]
[1642178305677,29.61726555,147.19,147.11,20.0518]
[1642178305875,29.61726555,147.19,147.11,26.3018]
[1642178306778,1.65714483,147.2,147.12,8.00587776]
[1642178306977,7.65714483,147.2,147.12,30.28807776]
[1642178307177,7.65714483,147.2,147.13,77.86]
[1642178307376,7.65714483,147.2,147.13,9.86]
[1642178307577,7.65714483,147.2,147.13,10.11]
[1642178307777,1.65714483,147.2,147.13,10.11]
[1642178307983,1.65714483,147.2,147.13,26.5602]
[1642178308177,32.00920425,147.23,147.13,26.5602]
[1642178308178,1.65714483,147.21,147.13,26.5602]
[1642178308677,1.65714483,147.21,147.14,68.0]
[1642178308878,1.65714483,147.21,147.15,9.86]
[1642178309105,1.65714483,147.21,147.15,26.5589]
[1642178309297,1.65714483,147.23,147.15,26.5589]
[1642178309502,1.65714483,147.23,147.16,25.17432359]
[1642178309702,1.65714483,147.23,147.17,9.86]
[1642178309902,1.65714483,147.23,147.18,68.0]
[1642178310098,1.65714483,147.23,147.19,9.86]
[1642178310501,1.65714483,147.25,147.19,26.5555]
[1642178310700,1.65714483,147.25,147.2,8.00587776]
[1642178310899,1.65714483,147.25,147.2,23.18887776]
[1642178311100,1.65714483,147.25,147.2,29.43887776]
[1642178311503,1.65714483,147.25,147.21,10.1848]
[1642178311705,22.44361406,147.29,147.21,10.1848]
[1642178311706,1.65714483,147.27,147.21,10.1848]
[1642178311903,1.65714483,147.27,147.21,20.2948]
[1642178312101,1.65714483,147.27,147.21,26.5548]
[1642178312306,1.65714483,147.27,147.22,68.0]
[1642178312501,1.65714483,147.27,147.25,10.1823]
[1642178312902,1.65714483,147.27,147.25,16.4323]
[1642178313303,1.65714483,147.27,147.25,0.25]
[1642178313704,1.65714483,147.29,147.25,0.25]
[1642178314102,1.65714483,147.29,147.23,16.11]
[1642178314303,17.46765028,147.28,147.23,6.0]
[1642178314502,2.716,147.27,147.21,15.86]
[1642178314704,2.716,147.27,147.19,1.94107684]
[1642178314903,26.8705,147.27,147.18,1.94107684]
[1642178315103,43.0588,147.27,147.18,1.94107684]
[1642178315503,36.8088,147.27,147.18,1.94107684]
[1642178316003,1.65714483,147.23,147.18,0.25]
[1642178316405,1.65714483,147.23,147.17,56.47251926]
[1642178316905,1.65714483,147.25,147.17,56.47251926]
[1642178317111,1.65714483,147.25,147.17,133.02151926]
[1642178317306,1.65714483,147.25,147.17,127.02151926]
[1642178317508,27.63598533,147.25,147.17,48.83341926]
[1642178317907,27.63598533,147.25,147.17,54.83341926]
[1642178318106,27.63598533,147.25,147.17,48.83341926]
[1642178318308,27.63598533,147.25,147.17,40.28441926]
[1642178318507,27.63598533,147.25,147.17,46.28441926]
[1642178318707,1.65714483,147.24,147.17,46.28441926]
[1642178319117,1.65714483,147.24,147.17,15.86]
[1642178319313,1.90714483,147.24,147.17,15.86]
[1642178320010,2.717,147.23,147.17,15.86]
[1642178320241,2.717,147.23,147.17,40.3913992]
[1642178320411,2.717,147.23,147.17,40.6413992]
[1642178320612,1.65714483,147.24,147.17,108.9013992]
[1642178320813,1.65714483,147.24,147.17,108.6413992]
[1642178321012,1.65714483,147.22,147.17,108.9013992]
[1642178321511,1.65714483,147.22,147.17,50.8295992]
[1642178321712,1.65714483,147.22,147.17,118.8295992]
[1642178321916,1.65714483,147.22,147.17,119.0895992]
[1642178322316,1.65714483,147.25,147.17,119.0895992]
[1642178322914,1.65714483,147.25,147.17,51.0895992]
[1642178323322,1.65714483,147.26,147.17,53.03067604]
[1642178323515,1.65714483,147.26,147.17,59.08167604]
[1642178323718,1.65714483,147.26,147.18,68.0]
[1642178323920,1.65714483,147.26,147.22,10.1845]
[1642178324116,1.65714483,147.26,147.22,18.7015]
[1642178324317,1.65714483,147.29,147.22,18.9515]
[1642178324516,1.65714483,147.29,147.23,9.86]
[1642178324722,1.65714483,147.29,147.23,18.50880215]
[1642178324916,1.65714483,147.29,147.23,18.75880215]
[1642178325323,25.99634483,147.31,147.23,18.75880215]
[1642178325517,25.99634483,147.31,147.23,24.75880215]
[1642178325821,25.99634483,147.31,147.23,18.75880215]
[1642178326317,2.716,147.3,147.23,24.75880215]
[1642178326517,28.71234483,147.31,147.23,24.75880215]
[1642178327218,25.99634483,147.31,147.23,24.75880215]
[1642178327418,25.99634483,147.31,147.23,40.36700215]
[1642178328919,28.71234483,147.31,147.23,40.36700215]
[1642178329724,25.99634483,147.31,147.23,40.36700215]
[1642178331328,1.65714483,147.31,147.23,40.36700215]
[1642178332328,1.65714483,147.31,147.23,40.62700215]
[1642178332929,1.65714483,147.31,147.23,42.32777803]
[1642178333129,1.65714483,147.31,147.24,68.0]
[1642178333330,1.65714483,147.32,147.27,10.1811]
[1642178333531,1.65714483,147.32,147.27,26.7521]
[1642178334131,1.65714483,147.32,147.27,51.2834992]
[1642178334430,2.716,147.35,147.27,51.2834992]
[1642178334431,1.65714483,147.33,147.27,51.2834992]
[1642178335758,1.65714483,147.33,147.27,16.571]
[1642178335952,1.65714483,147.33,147.27,10.11]
[1642178336754,15.2410563,147.32,147.27,10.11]
[1642178338054,15.2410563,147.32,147.27,16.11]
[1642178341056,2.715,147.31,147.27,16.11]
[1642178341256,2.715,147.32,147.27,16.11]
[1642178341658,4.37214483,147.32,147.27,16.11]
[1642178341855,1.65714483,147.32,147.27,16.11]
[1642178342457,4.37214483,147.33,147.27,16.11]
[1642178343058,4.37214483,147.33,147.27,23.903]
[1642178343258,1.65714483,147.33,147.27,91.903]
[1642178343658,1.65714483,147.33,147.27,23.903]
[1642178344262,1.65714483,147.33,147.27,16.11]
[1642178344863,1.65714483,147.33,147.27,15.86]
[1642178345368,16.41932436,147.32,147.27,15.86]
[1642178345765,1.65714483,147.31,147.27,15.86]
[1642178345965,1.65714483,147.31,147.27,16.11]
[1642178347264,1.65714483,147.3,147.27,16.11]
[1642178348067,1.65714483,147.32,147.27,16.11]
[1642178348268,1.65714483,147.32,147.27,24.338]
[1642178349467,12.75616497,147.31,147.27,16.11]
[1642178349867,12.75616497,147.31,147.27,0.25]
[1642178350069,12.75616497,147.31,147.23,2.19107684]
[1642178350267,1.65714483,147.3,147.23,6.25]
[1642178350673,1.65714483,147.3,147.23,0.25]
[1642178350867,1.65714483,147.3,147.23,20.0442]
[1642178351068,1.65714483,147.29,147.23,20.2942]
[1642178352370,1.65714483,147.29,147.23,20.0442]
[1642178352769,1.65714483,147.29,147.24,1.45952828]
[1642178352969,1.65714483,147.29,147.24,20.02932828]
[1642178353572,1.65714483,147.29,147.24,20.27932828]
[1642178354976,1.65714483,147.29,147.24,26.27932828]
[1642178356383,1.65714483,147.29,147.24,36.13932828]
[1642178356583,1.65714483,147.3,147.24,36.13932828]
[1642178357884,1.65714483,147.3,147.24,30.13932828]
[1642178358383,1.65714483,147.3,147.24,28.6798]
[1642178359087,7.65714483,147.3,147.24,28.6798]
[1642178359689,7.65714483,147.3,147.24,34.6798]
[1642178360189,1.65714483,147.3,147.24,34.6798]
[1642178362008,1.65714483,147.3,147.24,102.6798]
[1642178362205,1.65714483,147.3,147.24,102.9398]
[1642178363208,1.65714483,147.32,147.24,102.9398]
[1642178363508,18.75260448,147.32,147.24,34.6798]
[1642178363709,18.75260448,147.32,147.24,26.2938]
[1642178364311,1.65714483,147.31,147.24,26.2938]
[1642178364514,7.65714483,147.31,147.24,26.2938]
[1642178365708,7.65714483,147.31,147.24,26.0438]
[1642178365910,7.65714483,147.31,147.24,15.86]
[1642178366310,1.65714483,147.31,147.24,15.86]
[1642178366910,1.65714483,147.3,147.24,40.6900488]
[1642178367112,1.65714483,147.3,147.24,16.11]
[1642178367311,1.65714483,147.3,147.24,26.2937]
[1642178367711,18.75260448,147.32,147.24,26.2937]
[1642178368511,18.75260448,147.32,147.24,20.0437]
[1642178368709,2.715,147.31,147.22,1.94107684]
[1642178368911,25.2873,147.31,147.22,1.94107684]
[1642178369110,31.5373,147.31,147.22,1.94107684]
[1642178369313,99.5373,147.31,147.22,1.94107684]
[1642178369511,31.5373,147.31,147.22,1.94107684]
[1642178369813,26.57433898,147.27,147.19,1.94107684]
[1642178370011,2.716,147.26,147.19,7.94107684]
[1642178370411,2.716,147.26,147.19,8.19107684]
[1642178371010,2.716,147.26,147.19,6.25]
[1642178371410,2.716,147.26,147.19,0.25]
[1642178371612,2.716,147.26,147.19,6.25]
[1642178371814,4.37314483,147.26,147.19,6.25]
[1642178372310,1.65714483,147.26,147.19,0.25]
[1642178372513,1.65714483,147.26,147.18,57.52708166]
[1642178372712,1.65714483,147.26,147.18,26.2976]
[1642178372915,1.65714483,147.26,147.18,10.11]
[1642178373416,1.65714483,147.26,147.17,1.94107684]
[1642178373613,2.717,147.25,147.17,1.94107684]
[1642178373812,4.37414483,147.25,147.16,24.16673261]
[1642178374014,1.65714483,147.25,147.16,24.16673261]
[1642178374214,2.717,147.24,147.16,24.16673261]
[1642178374414,25.01464483,147.25,147.16,24.16673261]
[1642178374615,2.717,147.24,147.16,24.41673261]
[1642178374817,25.01464483,147.25,147.16,30.41673261]
[1642178375118,35.20444483,147.25,147.16,34.60603261]
[1642178375317,1.65714483,147.24,147.16,34.60603261]
[1642178375517,21.46960448,147.24,147.16,34.60603261]
[1642178375719,21.46960448,147.24,147.16,40.60603261]
[1642178376219,21.46960448,147.24,147.16,34.60603261]
[1642178376518,19.81245965,147.24,147.16,34.60603261]
[1642178377118,4.37414483,147.24,147.17,68.0]
[1642178377320,1.65714483,147.24,147.19,10.1872]
[1642178377521,1.65714483,147.24,147.19,10.4372]
[1642178377925,1.65714483,147.25,147.19,10.4372]
[1642178378523,1.65714483,147.25,147.19,0.25]
[1642178379022,1.65714483,147.25,147.17,16.11]
[1642178379224,1.65714483,147.25,147.18,28.82316985]
[1642178379424,24.66684483,147.26,147.18,48.85594573]
[1642178379624,1.65714483,147.26,147.19,68.0]
[1642178380025,1.65714483,147.27,147.2,9.86]
[1642178380258,1.65714483,147.27,147.21,68.0]
[1642178380425,1.65714483,147.27,147.22,9.86]
[1642178380825,1.65714483,147.27,147.22,16.11]
[1642178381024,1.65714483,147.27,147.23,10.1843]
[1642178381826,1.65714483,147.28,147.23,16.1843]
[1642178382026,1.65714483,147.28,147.23,10.1843]
[1642178382227,1.65714483,147.28,147.23,10.4343]
[1642178382834,1.65714483,147.28,147.23,16.4343]
[1642178383030,1.15714483,147.28,147.24,28.82316985]
[1642178383230,1.15714483,147.28,147.24,39.00686985]
[1642178383433,1.15714483,147.28,147.24,107.25686985]
[1642178383632,1.15714483,147.28,147.26,68.0]
[1642178383830,1.15714483,147.28,147.26,85.882]
[1642178384030,1.15714483,147.28,147.27,4.3570315]
[1642178384432,26.3062,147.34,147.27,10.6070315]
[1642178384632,23.5902,147.34,147.27,10.6070315]
[1642178385334,22.0902,147.34,147.27,20.7874315]
[1642178386737,13.3174246,147.33,147.27,16.4304]
[1642178387138,13.3174246,147.33,147.27,6.25]
[1642178387437,13.3174246,147.33,147.27,0.25]
[1642178387641,13.3174246,147.33,147.27,6.25]
[1642178388464,13.3174246,147.33,147.27,16.4319]
[1642178388768,6.41832028,147.35,147.27,6.25]
[1642178388964,9.70332028,147.35,147.27,6.25]
[1642178389168,9.70332028,147.35,147.27,0.25]
[1642178389169,3.70332028,147.35,147.27,0.25]
[1642178389368,9.70332028,147.35,147.26,16.11]
[1642178389766,31.86379056,147.34,147.27,10.1817]
[1642178389968,31.86379056,147.34,147.27,84.4317]
[1642178390268,31.86379056,147.34,147.27,16.4317]
[1642178390967,31.86379056,147.34,147.27,21.62359277]
[1642178391269,9.70332028,147.35,147.27,21.62359277]
[1642178391668,9.70332028,147.35,147.27,28.26659277]
[1642178391869,9.70332028,147.35,147.28,9.86]
[1642178392072,9.70332028,147.35,147.3,10.1795]
[1642178392268,3.70332028,147.35,147.31,27.98830858]
[1642178392467,3.70332028,147.35,147.31,28.23830858]
[1642178392670,28.62892028,147.37,147.31,28.23830858]
[1642178393469,45.49310029,147.37,147.31,38.41720858]
[1642178393669,45.49310029,147.37,147.31,10.4289]
[1642178394071,45.49310029,147.37,147.31,0.25]
[1642178394476,45.49310029,147.37,147.3,10.11]
[1642178394676,45.49310029,147.37,147.3,40.41252433]
[1642178394878,28.62892028,147.37,147.3,40.41252433]
[1642178395474,28.62892028,147.37,147.31,10.1793]
[1642178395873,28.62892028,147.37,147.31,10.4293]
[1642178396082,28.62892028,147.37,147.31,16.4293]
[1642178396275,28.62892028,147.37,147.31,16.1793]
[1642178397476,28.62892028,147.37,147.31,16.4293]
[1642178398876,28.62892028,147.37,147.31,10.4293]
[1642178400982,28.62892028,147.37,147.31,16.4293]
[1642178401182,28.62892028,147.37,147.31,6.25]
[1642178401383,28.62892028,147.37,147.31,0.25]
[1642178401583,28.62892028,147.37,147.3,9.86]
[1642178401584,28.62892028,147.37,147.3,10.11]
[1642178401781,31.34292028,147.37,147.3,10.11]
[1642178402382,7.57855149,147.36,147.3,20.2899]
[1642178402583,7.57855149,147.36,147.3,26.2899]
[1642178402784,7.57855149,147.36,147.31,2.45547622]
[1642178402982,7.57855149,147.36,147.31,8.96547622]
[1642178403185,3.87523121,147.36,147.24,9.9425]
[1642178403383,3.87523121,147.36,147.1,156.57295246]
[1642178403384,75.0,147.33,147.2,3.87784598]
[1642178403586,9.86,147.32,147.2,3.87784598]
[1642178403784,20.95563869,147.32,147.2,3.87784598]
[1642178403983,20.95563869,147.32,147.16,5.82194371]
[1642178403984,75.0,147.31,147.16,5.82194371]
[1642178404185,27.59780941,147.29,147.18,3.58126837]
[1642178404383,12.576,147.28,147.18,3.58126837]
[1642178404586,28.7636,147.28,147.18,3.58126837]
[1642178404785,18.9036,147.28,147.18,3.58126837]
[1642178405184,18.9036,147.28,147.17,5.71067422]
[1642178405390,16.1876,147.28,147.18,68.0]
[1642178405788,23.8556,147.29,147.18,68.0]
[1642178405986,23.8556,147.29,147.18,80.645]
[1642178406190,23.8556,147.29,147.18,90.505]
[1642178406621,23.8556,147.29,147.18,90.765]
[1642178406814,23.8556,147.29,147.18,91.015]
[1642178407615,23.8556,147.29,147.18,90.765]
[1642178407820,23.8556,147.29,147.18,90.505]
[1642178408021,2.716,147.28,147.18,90.505]
[1642178409020,2.966,147.28,147.18,90.755]
[1642178409219,23.8556,147.29,147.18,91.015]
[1642178409621,2.716,147.32,147.18,91.015]
[1642178409819,24.9971,147.32,147.19,22.9024]
[1642178410119,82.72973608,147.36,147.21,68.0]
[1642178410318,24.1568,147.35,147.22,33.5488]
[1642178410520,5.05213608,147.36,147.22,50.2413]
[1642178410720,5.05213608,147.36,147.23,68.0]
[1642178410922,5.05213608,147.36,147.24,9.86]
[1642178411119,5.05213608,147.36,147.24,15.879]
[1642178411323,5.05213608,147.36,147.24,22.389]
[1642178411521,5.05213608,147.36,147.25,6.02402521]
[1642178411721,5.05213608,147.36,147.29,10.178]
[1642178412020,5.05213608,147.36,147.3,27.15617614]
[1642178412219,3.87455737,147.4,147.3,27.15617614]
[1642178412422,3.87455737,147.4,147.31,68.0]
[1642178412621,3.87455737,147.4,147.32,20.0361]
[1642178412830,3.87455737,147.4,147.32,21.73687588]
[1642178413020,3.87455737,147.4,147.33,6.02402521]
[1642178413220,3.87455737,147.4,147.34,9.86]
[1642178413420,3.87455737,147.4,147.35,68.0]
[1642178413622,3.87455737,147.43,147.34,22.187]
[1642178413823,3.87455737,147.43,147.34,21.927]
[1642178414021,4.12455737,147.43,147.34,21.927]
[1642178414222,3.87455737,147.43,147.34,21.927]
[1642178414621,3.87455737,147.43,147.34,22.187]
[1642178414821,3.87455737,147.44,147.34,32.3623]
[1642178415223,3.87455737,147.44,147.34,32.1023]
[1642178415422,3.87455737,147.44,147.34,32.3623]
[1642178415825,34.49728712,147.44,147.34,32.3623]
[1642178416224,34.49728712,147.44,147.36,27.15617614]
[1642178416426,3.87455737,147.44,147.38,10.1723]
[1642178416824,3.87455737,147.44,147.38,16.4223]
[1642178417224,36.0,147.43,147.34,9.86]
[1642178417425,2.713,147.43,147.34,9.86]
[1642178417626,2.713,147.43,147.34,15.86]
[1642178417826,2.713,147.43,147.34,9.86]
[1642178418028,2.713,147.43,147.34,15.86]
[1642178418226,28.55657783,147.43,147.34,38.93315538]
[1642178418626,25.84357783,147.43,147.34,16.11]
[1642178418826,2.713,147.42,147.34,10.11]
[1642178419826,2.963,147.42,147.34,10.11]
[1642178420028,2.713,147.42,147.34,9.86]
[1642178420327,2.963,147.42,147.34,9.86]
[1642178420528,2.963,147.42,147.34,31.87254]
[1642178421029,19.1407,147.42,147.34,31.87254]
[1642178421229,13.1407,147.42,147.34,31.87254]
[1642178421431,19.1407,147.42,147.34,32.12254]
[1642178421831,9.86,147.41,147.34,32.12254]
[1642178422030,30.7193208,147.4,147.34,32.12254]
[1642178422230,30.7193208,147.4,147.34,31.87254]
[1642178422231,30.9693208,147.4,147.34,31.87254]
[1642178423130,30.7193208,147.4,147.34,31.87254]
[1642178423531,30.9693208,147.4,147.34,31.87254]
[1642178425733,36.9693208,147.4,147.34,31.87254]
[1642178426034,30.9693208,147.4,147.34,31.87254]
[1642178426433,3.87461042,147.39,147.34,31.87254]
[1642178426635,12.8947,147.38,147.34,31.87254]
[1642178426838,22.4191021,147.37,147.34,31.87254]
[1642178427035,6.06219997,147.36,147.34,31.87254]
[1642178428837,6.06219997,147.36,147.27,38.10728058]
[1642178429037,6.06219997,147.36,147.27,44.35728058]
[1642178429438,6.06219997,147.36,147.28,68.0]
[1642178429636,6.06219997,147.36,147.28,78.1797]
[1642178429837,6.06219997,147.36,147.28,84.6897]
[1642178430039,6.06219997,147.36,147.28,84.4297]
[1642178430942,22.4191021,147.37,147.28,84.4297]
[1642178431542,12.8937,147.39,147.28,84.4297]
[1642178431742,8.714,147.39,147.28,94.5497]
[1642178432645,24.71349746,147.38,147.28,94.5497]
[1642178432875,2.964,147.4,147.28,94.5497]
[1642178433074,0.25,147.4,147.28,94.5497]
[1642178433275,2.714,147.41,147.28,94.5497]
[1642178433676,22.83226128,147.4,147.28,118.11]
[1642178433876,33.01136128,147.4,147.28,118.11]
[1642178434179,33.01136128,147.4,147.28,117.85]
[1642178434375,24.1284,147.39,147.28,117.85]
[1642178434581,27.0924,147.39,147.28,39.6703]
[1642178434774,26.8424,147.39,147.28,39.6703]
[1642178435175,27.0924,147.39,147.28,39.6703]
[1642178436478,37.2725,147.39,147.28,39.6703]
[1642178440180,26.8424,147.39,147.29,1.73269655]
[1642178440480,2.714,147.39,147.29,18.10269655]
[1642178441081,2.714,147.39,147.3,68.0]
[1642178441281,22.83226128,147.4,147.29,17.84269655]
[1642178441483,2.714,147.39,147.29,15.86]
[1642178442081,2.714,147.39,147.29,16.12]
[1642178442480,2.714,147.39,147.3,30.364192]
[1642178442681,22.83226128,147.4,147.3,30.364192]
[1642178442981,22.83226128,147.4,147.3,36.364192]
[1642178443381,22.83226128,147.4,147.31,10.1782]
[1642178443582,22.83226128,147.4,147.31,16.1782]
[1642178443982,22.83226128,147.4,147.31,16.4282]
[1642178444181,46.63356128,147.4,147.31,16.4282]
[1642178444982,23.8013,147.4,147.31,16.4282]
[1642178445181,2.714,147.41,147.31,16.6882]
[1642178445383,10.1776,147.43,147.31,26.5482]
[1642178445583,2.714,147.44,147.32,68.0]
[1642178445783,7.76613608,147.45,147.35,10.1755]
[1642178445983,24.18887874,147.44,147.35,78.4255]
[1642178446385,24.43887874,147.44,147.35,78.4255]
[1642178446586,24.43887874,147.44,147.36,2.81600935]
[1642178446983,24.43887874,147.44,147.36,3.06600935]
[1642178447687,24.43887874,147.44,147.36,0.25]
[1642178447986,24.18887874,147.44,147.35,78.4255]
[1642178448185,2.713,147.43,147.35,78.4255]
[1642178448385,26.90187874,147.44,147.35,0.25]
[1642178448586,37.07827874,147.44,147.34,68.25]
[1642178449584,37.07827874,147.44,147.34,78.1762]
[1642178449585,26.90187874,147.44,147.34,78.1762]
[1642178449784,24.43887874,147.44,147.34,78.1762]
[1642178449988,24.43887874,147.44,147.34,84.4362]
[1642178449989,24.18887874,147.44,147.34,84.4362]
[1642178450187,24.18887874,147.44,147.34,78.4362]
[1642178450787,30.18887874,147.44,147.34,78.4362]
[1642178450987,30.18887874,147.44,147.34,78.4262]
[1642178451389,30.43887874,147.44,147.34,78.4262]
[1642178451588,30.43887874,147.44,147.34,68.25]
[1642178451986,2.713,147.43,147.34,68.25]
[1642178452190,27.279,147.43,147.34,68.25]
[1642178452388,33.529,147.43,147.34,68.25]
[1642178452590,33.529,147.43,147.34,68.0]
[1642178452789,3.87401172,147.42,147.34,68.0]
[1642178452989,10.12401172,147.42,147.34,68.0]
[1642178453389,20.30201172,147.42,147.34,68.0]
[1642178453792,16.178,147.42,147.34,68.25]
[1642178454992,16.178,147.42,147.34,78.11]
[1642178456895,6.0,147.42,147.34,78.11]
[1642178457095,33.279,147.43,147.34,78.11]
[1642178457296,33.529,147.43,147.34,78.11]
[1642178457995,33.529,147.43,147.34,10.11]
[1642178458195,43.7063,147.43,147.34,0.25]
[1642178458595,43.7063,147.43,147.31,23.7278]
[1642178458796,55.26707588,147.43,147.28,9.86]
[1642178459026,123.26707588,147.43,147.24,32.3636]
[1642178459196,26.70142759,147.42,147.27,28.79484434]
[1642178459397,10.1828,147.35,147.27,28.79484434]
[1642178459595,29.66371989,147.35,147.27,28.79484434]
[1642178459998,29.91371989,147.35,147.27,29.04484434]
[1642178460398,0.25,147.35,147.27,29.04484434]
[1642178460800,0.25,147.35,147.27,28.79484434]
[1642178460999,2.715,147.36,147.27,96.79484434]
[1642178461200,26.2226,147.38,147.27,96.79484434]
[1642178461402,23.5076,147.38,147.27,104.75562022]
[1642178461601,23.5076,147.38,147.27,114.93642022]
[1642178462000,24.43627372,147.4,147.27,115.18642022]
[1642178462299,30.43627372,147.4,147.27,115.18642022]
[1642178462501,30.43627372,147.4,147.28,9.86]
[1642178462701,30.43627372,147.4,147.3,10.1787]
[1642178463101,30.43627372,147.4,147.31,68.0]
[1642178463304,30.43627372,147.4,147.3,10.6887]
[1642178463503,30.43627372,147.4,147.31,68.0]
[1642178464002,30.43627372,147.4,147.31,68.25]
[1642178464803,6.0,147.4,147.31,78.4282]
[1642178465103,53.2032,147.42,147.31,84.6882]
[1642178465302,47.2032,147.42,147.31,84.6882]
[1642178465904,78.1138486,147.42,147.31,84.6882]
[1642178466403,88.2916486,147.42,147.31,84.6882]
[1642178468634,88.2916486,147.42,147.31,78.6882]
[1642178468834,88.2916486,147.42,147.31,84.6882]
[1642178469635,88.2916486,147.42,147.34,10.1771]
[1642178470037,88.2916486,147.42,147.34,10.4271]
[1642178470234,41.0884486,147.42,147.34,78.4271]
[1642178471536,10.1778,147.42,147.34,78.4271]
[1642178471737,10.1768,147.44,147.34,78.4271]
[1642178471938,10.1768,147.44,147.34,94.5471]
[1642178471939,16.1768,147.44,147.34,94.5471]
[1642178472638,38.63889007,147.44,147.34,94.5471]
[1642178472841,28.46209007,147.44,147.34,94.5471]
[1642178474244,28.46209007,147.44,147.34,94.2871]
[1642178474639,38.63839007,147.44,147.34,26.2871]
[1642178475940,38.88839007,147.44,147.34,26.2871]
[1642178476140,2.713,147.43,147.3,43.7848]
[1642178476340,37.091,147.43,147.3,9.86]
[1642178476542,10.1825,147.37,147.3,9.86]
[1642178476740,2.714,147.36,147.26,5.82194371]
[1642178476953,32.4075,147.36,147.26,5.82194371]
[1642178477140,32.4075,147.36,147.27,27.86683034]
[1642178477641,10.1842,147.33,147.27,27.86683034]
[1642178478040,10.1842,147.33,147.27,28.11683034]
[1642178478443,22.97691397,147.35,147.27,28.11683034]
[1642178478641,2.715,147.34,147.27,28.11683034]
[1642178480244,2.715,147.35,147.27,28.11683034]
[1642178480444,26.1585,147.36,147.27,28.11683034]
[1642178480644,23.4435,147.36,147.27,28.11683034]
[1642178480845,23.4435,147.36,147.27,34.11683034]
[1642178481045,23.65587542,147.39,147.27,28.11683034]
[1642178481244,48.96707542,147.39,147.27,34.11683034]
[1642178481447,48.96707542,147.39,147.27,44.29963034]
[1642178482446,59.15017542,147.39,147.27,38.29963034]
[1642178482846,48.96707542,147.39,147.27,38.29963034]
[1642178483046,54.96707542,147.39,147.27,38.29963034]
[1642178483449,55.21707542,147.39,147.27,38.29963034]
[1642178483846,65.39987542,147.39,147.27,38.29963034]
[1642178485448,55.21707542,147.39,147.27,38.29963034]
[1642178485648,49.21707542,147.39,147.28,1.70077588]
[1642178485849,46.25307542,147.39,147.31,10.1797]
[1642178486052,46.25307542,147.39,147.31,10.4297]
[1642178486250,46.25307542,147.39,147.31,0.25]
[1642178487153,46.25307542,147.39,147.29,16.11]
[1642178488254,2.714,147.38,147.29,16.11]
[1642178489253,2.714,147.38,147.29,26.2909]
[1642178489456,2.964,147.38,147.29,26.2909]
[1642178489854,2.964,147.38,147.29,0.25]
[1642178490053,24.23427588,147.37,147.26,0.25]
[1642178490254,10.1857,147.35,147.26,0.25]